Workbook

Sheet Rank_Diff1
A1: In this study, we implement a rank difference analysis by settingquantile normalization as the reference.
A3: All the ranks are inverse ranks, that saying, the largest absolute t-statistic (the most significant) has rank 1, and so forth.
A5: Probe set name | C5: Gene symbol | E5: Quantile Rank | G5: Super-delta Rank | I5: Rank Difference | L5: Number of genesNOT significant for super-delta
A7: 204703_at | C7: IFT88 | E7: 1 | G7: 27 | I7: =G7-E7 -> 26 | K7: =IF(G7>1000,"Yes"," ") ->  | L7: =COUNTIF(K7:K1006,"Yes") -> 305
A8: 205441_at | C8: OCEL1 | E8: =E7+1 -> 2 | G8: 42 | I8: =G8-E8 -> 40 | K8: =IF(G8>1000,"Yes"," ") -> 
A9: 201930_at | C9: MCM6 | E9: =E8+1 -> 3 | G9: 1 | I9: =G9-E9 -> -2 | K9: =IF(G9>1000,"Yes"," ") -> 
A10: 208628_s_at | C10: YBX1 | E10: =E9+1 -> 4 | G10: 2 | I10: =G10-E10 -> -2 | K10: =IF(G10>1000,"Yes"," ") -> 
A11: 212736_at | C11: C16orf45 | E11: =E10+1 -> 5 | G11: 10 | I11: =G11-E11 -> 5 | K11: =IF(G11>1000,"Yes"," ") -> 
A12: 206197_at | C12: NME5 | E12: =E11+1 -> 6 | G12: 52 | I12: =G12-E12 -> 46 | K12: =IF(G12>1000,"Yes"," ") -> 
A13: 218692_at | C13: SYBU | E13: =E12+1 -> 7 | G13: 9 | I13: =G13-E13 -> 2 | K13: =IF(G13>1000,"Yes"," ") -> 
A14: 213911_s_at | C14: H2AFZ | E14: =E13+1 -> 8 | G14: 7 | I14: =G14-E14 -> -1 | K14: =IF(G14>1000,"Yes"," ") -> 
A15: 204063_s_at | C15: ULK2 | E15: =E14+1 -> 9 | G15: 249 | I15: =G15-E15 -> 240 | K15: =IF(G15>1000,"Yes"," ") -> 
A16: 208627_s_at | C16: YBX1 | E16: =E15+1 -> 10 | G16: 5 | I16: =G16-E16 -> -5 | K16: =IF(G16>1000,"Yes"," ") -> 
A17: 204962_s_at | C17: CENPA | E17: =E16+1 -> 11 | G17: 3 | I17: =G17-E17 -> -8 | K17: =IF(G17>1000,"Yes"," ") -> 
A18: 203143_s_at | C18: KIAA0040 | E18: =E17+1 -> 12 | G18: 44 | I18: =G18-E18 -> 32 | K18: =IF(G18>1000,"Yes"," ") -> 
A19: 212908_at | C19: DNAJC16 | E19: =E18+1 -> 13 | G19: 445 | I19: =G19-E19 -> 432 | K19: =IF(G19>1000,"Yes"," ") -> 
A20: 204934_s_at | C20: HPN | E20: =E19+1 -> 14 | G20: 49 | I20: =G20-E20 -> 35 | K20: =IF(G20>1000,"Yes"," ") -> 
A21: 204045_at | C21: TCEAL1 | E21: =E20+1 -> 15 | G21: 131 | I21: =G21-E21 -> 116 | K21: =IF(G21>1000,"Yes"," ") -> 
A22: 203368_at | C22: CRELD1 | E22: =E21+1 -> 16 | G22: 213 | I22: =G22-E22 -> 197 | K22: =IF(G22>1000,"Yes"," ") -> 
A23: 203418_at | C23: CCNA2 | E23: =E22+1 -> 17 | G23: 37 | I23: =G23-E23 -> 20 | K23: =IF(G23>1000,"Yes"," ") -> 
A24: 214039_s_at | C24: LAPTM4B | E24: =E23+1 -> 18 | G24: 4 | I24: =G24-E24 -> -14 | K24: =IF(G24>1000,"Yes"," ") -> 
A25: 203358_s_at | C25: EZH2 | E25: =E24+1 -> 19 | G25: 15 | I25: =G25-E25 -> -4 | K25: =IF(G25>1000,"Yes"," ") -> 
A26: 202870_s_at | C26: CDC20 | E26: =E25+1 -> 20 | G26: 6 | I26: =G26-E26 -> -14 | K26: =IF(G26>1000,"Yes"," ") -> 
A27: 202095_s_at | C27: BIRC5 | E27: =E26+1 -> 21 | G27: 16 | I27: =G27-E27 -> -5 | K27: =IF(G27>1000,"Yes"," ") -> 
A28: 200934_at | C28: DEK | E28: =E27+1 -> 22 | G28: 8 | I28: =G28-E28 -> -14 | K28: =IF(G28>1000,"Yes"," ") -> 
A29: 203801_at | C29: MRPS14 | E29: =E28+1 -> 23 | G29: 340 | I29: =G29-E29 -> 317 | K29: =IF(G29>1000,"Yes"," ") -> 
A30: 218437_s_at | C30: LZTFL1 | E30: =E29+1 -> 24 | G30: 29 | I30: =G30-E30 -> 5 | K30: =IF(G30>1000,"Yes"," ") -> 
A31: 212320_at | C31: TUBB | E31: =E30+1 -> 25 | G31: 60 | I31: =G31-E31 -> 35 | K31: =IF(G31>1000,"Yes"," ") -> 
A32: 208767_s_at | C32: LAPTM4B | E32: =E31+1 -> 26 | G32: 12 | I32: =G32-E32 -> -14 | K32: =IF(G32>1000,"Yes"," ") -> 
A33: 202107_s_at | C33: MCM2 | E33: =E32+1 -> 27 | G33: 17 | I33: =G33-E33 -> -10 | K33: =IF(G33>1000,"Yes"," ") -> 
A34: 214077_x_at | C34: MEIS3P1 | E34: =E33+1 -> 28 | G34: 81 | I34: =G34-E34 -> 53 | K34: =IF(G34>1000,"Yes"," ") -> 
A35: 201977_s_at | C35: KIAA0141 | E35: =E34+1 -> 29 | G35: 412 | I35: =G35-E35 -> 383 | K35: =IF(G35>1000,"Yes"," ") -> 
A36: 210958_s_at | C36: MAST4 | E36: =E35+1 -> 30 | G36: 133 | I36: =G36-E36 -> 103 | K36: =IF(G36>1000,"Yes"," ") -> 
A37: 205141_at | C37: ANG | E37: =E36+1 -> 31 | G37: 342 | I37: =G37-E37 -> 311 | K37: =IF(G37>1000,"Yes"," ") -> 
A38: 57540_at | C38: RBKS | E38: =E37+1 -> 32 | G38: 378 | I38: =G38-E38 -> 346 | K38: =IF(G38>1000,"Yes"," ") -> 
A39: 40016_g_at | C39: MAST4 | E39: =E38+1 -> 33 | G39: 41 | I39: =G39-E39 -> 8 | K39: =IF(G39>1000,"Yes"," ") -> 
A40: 200996_at | C40: ACTR3 | E40: =E39+1 -> 34 | G40: 30 | I40: =G40-E40 -> -4 | K40: =IF(G40>1000,"Yes"," ") -> 
A41: 202911_at | C41: MSH6 | E41: =E40+1 -> 35 | G41: 48 | I41: =G41-E41 -> 13 | K41: =IF(G41>1000,"Yes"," ") -> 
A42: 202705_at | C42: CCNB2 | E42: =E41+1 -> 36 | G42: 23 | I42: =G42-E42 -> -13 | K42: =IF(G42>1000,"Yes"," ") -> 
A43: 221676_s_at | C43: CORO1C | E43: =E42+1 -> 37 | G43: 20 | I43: =G43-E43 -> -17 | K43: =IF(G43>1000,"Yes"," ") -> 
A44: 213101_s_at | C44: ACTR3 | E44: =E43+1 -> 38 | G44: 18 | I44: =G44-E44 -> -20 | K44: =IF(G44>1000,"Yes"," ") -> 
A45: 204822_at | C45: TTK | E45: =E44+1 -> 39 | G45: 14 | I45: =G45-E45 -> -25 | K45: =IF(G45>1000,"Yes"," ") -> 
A46: 212789_at | C46: NCAPD3 | E46: =E45+1 -> 40 | G46: 212 | I46: =G46-E46 -> 172 | K46: =IF(G46>1000,"Yes"," ") -> 
A47: 209940_at | C47: PARP3 | E47: =E46+1 -> 41 | G47: 442 | I47: =G47-E47 -> 401 | K47: =IF(G47>1000,"Yes"," ") -> 
A48: 221823_at | C48: C5orf30 | E48: =E47+1 -> 42 | G48: 180 | I48: =G48-E48 -> 138 | K48: =IF(G48>1000,"Yes"," ") -> 
A49: 214152_at | C49: CCPG1 | E49: =E48+1 -> 43 | G49: 417 | I49: =G49-E49 -> 374 | K49: =IF(G49>1000,"Yes"," ") -> 
A50: 204170_s_at | C50: CKS2 | E50: =E49+1 -> 44 | G50: 21 | I50: =G50-E50 -> -23 | K50: =IF(G50>1000,"Yes"," ") -> 
A51: 211714_x_at | C51: TUBB | E51: =E50+1 -> 45 | G51: 85 | I51: =G51-E51 -> 40 | K51: =IF(G51>1000,"Yes"," ") -> 
A52: 206396_at | C52: SLC1A1 | E52: =E51+1 -> 46 | G52: 165 | I52: =G52-E52 -> 119 | K52: =IF(G52>1000,"Yes"," ") -> 
A53: 202951_at | C53: STK38 | E53: =E52+1 -> 47 | G53: 54 | I53: =G53-E53 -> 7 | K53: =IF(G53>1000,"Yes"," ") -> 
A54: 201088_at | C54: KPNA2 | E54: =E53+1 -> 48 | G54: 19 | I54: =G54-E54 -> -29 | K54: =IF(G54>1000,"Yes"," ") -> 
A55: 209623_at | C55: MCCC2 | E55: =E54+1 -> 49 | G55: 246 | I55: =G55-E55 -> 197 | K55: =IF(G55>1000,"Yes"," ") -> 
A56: 218542_at | C56: CEP55 | E56: =E55+1 -> 50 | G56: 47 | I56: =G56-E56 -> -3 | K56: =IF(G56>1000,"Yes"," ") -> 
A57: 205059_s_at | C57: IDUA | E57: =E56+1 -> 51 | G57: 252 | I57: =G57-E57 -> 201 | K57: =IF(G57>1000,"Yes"," ") -> 
A58: 212021_s_at | C58: MKI67 | E58: =E57+1 -> 52 | G58: 109 | I58: =G58-E58 -> 57 | K58: =IF(G58>1000,"Yes"," ") -> 
A59: 210052_s_at | C59: TPX2 | E59: =E58+1 -> 53 | G59: 39 | I59: =G59-E59 -> -14 | K59: =IF(G59>1000,"Yes"," ") -> 
A60: 209625_at | C60: PIGH | E60: =E59+1 -> 54 | G60: 353 | I60: =G60-E60 -> 299 | K60: =IF(G60>1000,"Yes"," ") -> 
A61: 202097_at | C61: NUP153 | E61: =E60+1 -> 55 | G61: 82 | I61: =G61-E61 -> 27 | K61: =IF(G61>1000,"Yes"," ") -> 
A62: 202633_at | C62: TOPBP1 | E62: =E61+1 -> 56 | G62: 74 | I62: =G62-E62 -> 18 | K62: =IF(G62>1000,"Yes"," ") -> 
A63: 204244_s_at | C63: DBF4 | E63: =E62+1 -> 57 | G63: 86 | I63: =G63-E63 -> 29 | K63: =IF(G63>1000,"Yes"," ") -> 
A64: 213234_at | C64: KIAA1467 | E64: =E63+1 -> 58 | G64: 130 | I64: =G64-E64 -> 72 | K64: =IF(G64>1000,"Yes"," ") -> 
A65: 208672_s_at | C65: SRSF3 | E65: =E64+1 -> 59 | G65: 149 | I65: =G65-E65 -> 90 | K65: =IF(G65>1000,"Yes"," ") -> 
A66: 202413_s_at | C66: USP1 | E66: =E65+1 -> 60 | G66: 26 | I66: =G66-E66 -> -34 | K66: =IF(G66>1000,"Yes"," ") -> 
A67: 201890_at | C67: RRM2 | E67: =E66+1 -> 61 | G67: 24 | I67: =G67-E67 -> -37 | K67: =IF(G67>1000,"Yes"," ") -> 
A68: 209026_x_at | C68: TUBB | E68: =E67+1 -> 62 | G68: 94 | I68: =G68-E68 -> 32 | K68: =IF(G68>1000,"Yes"," ") -> 
A69: 206401_s_at | C69: MAPT | E69: =E68+1 -> 63 | G69: 87 | I69: =G69-E69 -> 24 | K69: =IF(G69>1000,"Yes"," ") -> 
A70: 203625_x_at | C70: SKP2 | E70: =E69+1 -> 64 | G70: 22 | I70: =G70-E70 -> -42 | K70: =IF(G70>1000,"Yes"," ") -> 
A71: 217356_s_at | C71: PGK1 | E71: =E70+1 -> 65 | G71: 93 | I71: =G71-E71 -> 28 | K71: =IF(G71>1000,"Yes"," ") -> 
A72: 221511_x_at | C72: CCPG1 | E72: =E71+1 -> 66 | G72: 516 | I72: =G72-E72 -> 450 | K72: =IF(G72>1000,"Yes"," ") -> 
A73: 220094_s_at | C73: CCDC90A | E73: =E72+1 -> 67 | G73: 53 | I73: =G73-E73 -> -14 | K73: =IF(G73>1000,"Yes"," ") -> 
A74: 204686_at | C74: IRS1 | E74: =E73+1 -> 68 | G74: 33 | I74: =G74-E74 -> -35 | K74: =IF(G74>1000,"Yes"," ") -> 
A75: 218236_s_at | C75: PRKD3 | E75: =E74+1 -> 69 | G75: 38 | I75: =G75-E75 -> -31 | K75: =IF(G75>1000,"Yes"," ") -> 
A76: 200714_x_at | C76: OS9 | E76: =E75+1 -> 70 | G76: 605 | I76: =G76-E76 -> 535 | K76: =IF(G76>1000,"Yes"," ") -> 
A77: 218914_at | C77: C1orf66 | E77: =E76+1 -> 71 | G77: 499 | I77: =G77-E77 -> 428 | K77: =IF(G77>1000,"Yes"," ") -> 
A78: 201180_s_at | C78: GNAI3 | E78: =E77+1 -> 72 | G78: 70 | I78: =G78-E78 -> -2 | K78: =IF(G78>1000,"Yes"," ") -> 
A79: 203284_s_at | C79: HS2ST1 | E79: =E78+1 -> 73 | G79: 62 | I79: =G79-E79 -> -11 | K79: =IF(G79>1000,"Yes"," ") -> 
A80: 213664_at | C80: SLC1A1 | E80: =E79+1 -> 74 | G80: 13 | I80: =G80-E80 -> -61 | K80: =IF(G80>1000,"Yes"," ") -> 
A81: 221710_x_at | C81: FAM176B | E81: =E80+1 -> 75 | G81: 69 | I81: =G81-E81 -> -6 | K81: =IF(G81>1000,"Yes"," ") -> 
A82: 205074_at | C82: SLC22A5 | E82: =E81+1 -> 76 | G82: 301 | I82: =G82-E82 -> 225 | K82: =IF(G82>1000,"Yes"," ") -> 
A83: 213699_s_at | C83: YWHAQ | E83: =E82+1 -> 77 | G83: 56 | I83: =G83-E83 -> -21 | K83: =IF(G83>1000,"Yes"," ") -> 
A84: 217972_at | C84: CHCHD3 | E84: =E83+1 -> 78 | G84: 98 | I84: =G84-E84 -> 20 | K84: =IF(G84>1000,"Yes"," ") -> 
A85: 216264_s_at | C85: LAMB2 | E85: =E84+1 -> 79 | G85: 112 | I85: =G85-E85 -> 33 | K85: =IF(G85>1000,"Yes"," ") -> 
A86: 209665_at | C86: CYB561D2 | E86: =E85+1 -> 80 | G86: 500 | I86: =G86-E86 -> 420 | K86: =IF(G86>1000,"Yes"," ") -> 
A87: 202772_at | C87: HMGCL | E87: =E86+1 -> 81 | G87: 533 | I87: =G87-E87 -> 452 | K87: =IF(G87>1000,"Yes"," ") -> 
A88: 211042_x_at | C88: MCAM | E88: =E87+1 -> 82 | G88: 46 | I88: =G88-E88 -> -36 | K88: =IF(G88>1000,"Yes"," ") -> 
A89: 203439_s_at | C89: STC2 | E89: =E88+1 -> 83 | G89: 78 | I89: =G89-E89 -> -5 | K89: =IF(G89>1000,"Yes"," ") -> 
A90: 65517_at | C90: AP1M2 | E90: =E89+1 -> 84 | G90: 475 | I90: =G90-E90 -> 391 | K90: =IF(G90>1000,"Yes"," ") -> 
A91: 203764_at | C91: DLGAP5 | E91: =E90+1 -> 85 | G91: 61 | I91: =G91-E91 -> -24 | K91: =IF(G91>1000,"Yes"," ") -> 
A92: 208451_s_at | C92: C4A /// C4B /// LOC100509001 | E92: =E91+1 -> 86 | G92: 35 | I92: =G92-E92 -> -51 | K92: =IF(G92>1000,"Yes"," ") -> 
A93: 202954_at | C93: UBE2C | E93: =E92+1 -> 87 | G93: 40 | I93: =G93-E93 -> -47 | K93: =IF(G93>1000,"Yes"," ") -> 
A94: 214440_at | C94: NAT1 | E94: =E93+1 -> 88 | G94: 25 | I94: =G94-E94 -> -63 | K94: =IF(G94>1000,"Yes"," ") -> 
A95: 211519_s_at | C95: KIF2C | E95: =E94+1 -> 89 | G95: 110 | I95: =G95-E95 -> 21 | K95: =IF(G95>1000,"Yes"," ") -> 
A96: 203362_s_at | C96: MAD2L1 | E96: =E95+1 -> 90 | G96: 55 | I96: =G96-E96 -> -35 | K96: =IF(G96>1000,"Yes"," ") -> 
A97: 203788_s_at | C97: SEMA3C | E97: =E96+1 -> 91 | G97: 258 | I97: =G97-E97 -> 167 | K97: =IF(G97>1000,"Yes"," ") -> 
A98: 214428_x_at | C98: C4A /// C4B /// LOC100509001 | E98: =E97+1 -> 92 | G98: 34 | I98: =G98-E98 -> -58 | K98: =IF(G98>1000,"Yes"," ") -> 
A99: 219359_at | C99: ATHL1 | E99: =E98+1 -> 93 | G99: 71 | I99: =G99-E99 -> -22 | K99: =IF(G99>1000,"Yes"," ") -> 
A100: 204767_s_at | C100: FEN1 | E100: =E99+1 -> 94 | G100: 137 | I100: =G100-E100 -> 43 | K100: =IF(G100>1000,"Yes"," ") -> 
A101: 209408_at | C101: KIF2C | E101: =E100+1 -> 95 | G101: 77 | I101: =G101-E101 -> -18 | K101: =IF(G101>1000,"Yes"," ") -> 
A102: 218883_s_at | C102: MLF1IP | E102: =E101+1 -> 96 | G102: 31 | I102: =G102-E102 -> -65 | K102: =IF(G102>1000,"Yes"," ") -> 
A103: 200693_at | C103: YWHAQ | E103: =E102+1 -> 97 | G103: 73 | I103: =G103-E103 -> -24 | K103: =IF(G103>1000,"Yes"," ") -> 
A104: 211937_at | C104: EIF4B | E104: =E103+1 -> 98 | G104: 995 | I104: =G104-E104 -> 897 | K104: =IF(G104>1000,"Yes"," ") -> 
A105: 201685_s_at | C105: TOX4 | E105: =E104+1 -> 99 | G105: 375 | I105: =G105-E105 -> 276 | K105: =IF(G105>1000,"Yes"," ") -> 
A106: 205509_at | C106: CPB1 | E106: =E105+1 -> 100 | G106: 28 | I106: =G106-E106 -> -72 | K106: =IF(G106>1000,"Yes"," ") -> 
A107: 204900_x_at | C107: SAP30 | E107: =E106+1 -> 101 | G107: 64 | I107: =G107-E107 -> -37 | K107: =IF(G107>1000,"Yes"," ") -> 
A108: 200052_s_at | C108: ILF2 | E108: =E107+1 -> 102 | G108: 57 | I108: =G108-E108 -> -45 | K108: =IF(G108>1000,"Yes"," ") -> 
A109: 204026_s_at | C109: ZWINT | E109: =E108+1 -> 103 | G109: 51 | I109: =G109-E109 -> -52 | K109: =IF(G109>1000,"Yes"," ") -> 
A110: 200747_s_at | C110: NUMA1 | E110: =E109+1 -> 104 | G110: 423 | I110: =G110-E110 -> 319 | K110: =IF(G110>1000,"Yes"," ") -> 
A111: 201291_s_at | C111: TOP2A | E111: =E110+1 -> 105 | G111: 32 | I111: =G111-E111 -> -73 | K111: =IF(G111>1000,"Yes"," ") -> 
A112: 211284_s_at | C112: GRN | E112: =E111+1 -> 106 | G112: 568 | I112: =G112-E112 -> 462 | K112: =IF(G112>1000,"Yes"," ") -> 
A113: 204093_at | C113: CCNH | E113: =E112+1 -> 107 | G113: 355 | I113: =G113-E113 -> 248 | K113: =IF(G113>1000,"Yes"," ") -> 
A114: 201923_at | C114: PRDX4 | E114: =E113+1 -> 108 | G114: 66 | I114: =G114-E114 -> -42 | K114: =IF(G114>1000,"Yes"," ") -> 
A115: 205352_at | C115: SERPINI1 | E115: =E114+1 -> 109 | G115: 58 | I115: =G115-E115 -> -51 | K115: =IF(G115>1000,"Yes"," ") -> 
A116: 211762_s_at | C116: KPNA2 | E116: =E115+1 -> 110 | G116: 43 | I116: =G116-E116 -> -67 | K116: =IF(G116>1000,"Yes"," ") -> 
A117: 219918_s_at | C117: ASPM | E117: =E116+1 -> 111 | G117: 63 | I117: =G117-E117 -> -48 | K117: =IF(G117>1000,"Yes"," ") -> 
A118: 200853_at | C118: H2AFZ | E118: =E117+1 -> 112 | G118: 89 | I118: =G118-E118 -> -23 | K118: =IF(G118>1000,"Yes"," ") -> 
A119: 214496_x_at | C119: MYST4 | E119: =E118+1 -> 113 | G119: 337 | I119: =G119-E119 -> 224 | K119: =IF(G119>1000,"Yes"," ") -> 
A120: 204217_s_at | C120: RTN2 | E120: =E119+1 -> 114 | G120: 543 | I120: =G120-E120 -> 429 | K120: =IF(G120>1000,"Yes"," ") -> 
A121: 216092_s_at | C121: SLC7A8 | E121: =E120+1 -> 115 | G121: 275 | I121: =G121-E121 -> 160 | K121: =IF(G121>1000,"Yes"," ") -> 
A122: 208393_s_at | C122: RAD50 | E122: =E121+1 -> 116 | G122: 967 | I122: =G122-E122 -> 851 | K122: =IF(G122>1000,"Yes"," ") -> 
A123: 205160_at | C123: PEX11A | E123: =E122+1 -> 117 | G123: 291 | I123: =G123-E123 -> 174 | K123: =IF(G123>1000,"Yes"," ") -> 
A124: 213226_at | C124: CCNA2 | E124: =E123+1 -> 118 | G124: 126 | I124: =G124-E124 -> 8 | K124: =IF(G124>1000,"Yes"," ") -> 
A125: 200657_at | C125: SLC25A5 | E125: =E124+1 -> 119 | G125: 278 | I125: =G125-E125 -> 159 | K125: =IF(G125>1000,"Yes"," ") -> 
A126: 204768_s_at | C126: FEN1 | E126: =E125+1 -> 120 | G126: 119 | I126: =G126-E126 -> -1 | K126: =IF(G126>1000,"Yes"," ") -> 
A127: 208808_s_at | C127: HMGB2 | E127: =E126+1 -> 121 | G127: 50 | I127: =G127-E127 -> -71 | K127: =IF(G127>1000,"Yes"," ") -> 
A128: 219212_at | C128: HSPA14 | E128: =E127+1 -> 122 | G128: 91 | I128: =G128-E128 -> -31 | K128: =IF(G128>1000,"Yes"," ") -> 
A129: 201334_s_at | C129: ARHGEF12 | E129: =E128+1 -> 123 | G129: 649 | I129: =G129-E129 -> 526 | K129: =IF(G129>1000,"Yes"," ") -> 
A130: 202791_s_at | C130: PPP6R2 | E130: =E129+1 -> 124 | G130: 1048 | I130: =G130-E130 -> 924 | K130: =IF(G130>1000,"Yes"," ") -> Yes
A131: 212354_at | C131: SULF1 | E131: =E130+1 -> 125 | G131: 120 | I131: =G131-E131 -> -5 | K131: =IF(G131>1000,"Yes"," ") -> 
A132: 218755_at | C132: KIF20A | E132: =E131+1 -> 126 | G132: 114 | I132: =G132-E132 -> -12 | K132: =IF(G132>1000,"Yes"," ") -> 
A133: 220134_x_at | C133: FAM176B | E133: =E132+1 -> 127 | G133: 103 | I133: =G133-E133 -> -24 | K133: =IF(G133>1000,"Yes"," ") -> 
A134: 218584_at | C134: TCTN1 | E134: =E133+1 -> 128 | G134: 681 | I134: =G134-E134 -> 553 | K134: =IF(G134>1000,"Yes"," ") -> 
A135: 218350_s_at | C135: GMNN | E135: =E134+1 -> 129 | G135: 104 | I135: =G135-E135 -> -25 | K135: =IF(G135>1000,"Yes"," ") -> 
A136: 209025_s_at | C136: SYNCRIP | E136: =E135+1 -> 130 | G136: 96 | I136: =G136-E136 -> -34 | K136: =IF(G136>1000,"Yes"," ") -> 
A137: 202725_at | C137: POLR2A | E137: =E136+1 -> 131 | G137: 726 | I137: =G137-E137 -> 595 | K137: =IF(G137>1000,"Yes"," ") -> 
A138: 204159_at | C138: CDKN2C | E138: =E137+1 -> 132 | G138: 451 | I138: =G138-E138 -> 319 | K138: =IF(G138>1000,"Yes"," ") -> 
A139: 221139_s_at | C139: CSAD | E139: =E138+1 -> 133 | G139: 156 | I139: =G139-E139 -> 23 | K139: =IF(G139>1000,"Yes"," ") -> 
A140: 209773_s_at | C140: RRM2 | E140: =E139+1 -> 134 | G140: 88 | I140: =G140-E140 -> -46 | K140: =IF(G140>1000,"Yes"," ") -> 
A141: 211070_x_at | C141: DBI | E141: =E140+1 -> 135 | G141: 84 | I141: =G141-E141 -> -51 | K141: =IF(G141>1000,"Yes"," ") -> 
A142: 214710_s_at | C142: CCNB1 | E142: =E141+1 -> 136 | G142: 105 | I142: =G142-E142 -> -31 | K142: =IF(G142>1000,"Yes"," ") -> 
A143: 201970_s_at | C143: NASP | E143: =E142+1 -> 137 | G143: 67 | I143: =G143-E143 -> -70 | K143: =IF(G143>1000,"Yes"," ") -> 
A144: 208103_s_at | C144: ANP32E | E144: =E143+1 -> 138 | G144: 65 | I144: =G144-E144 -> -73 | K144: =IF(G144>1000,"Yes"," ") -> 
A145: 218922_s_at | C145: LASS4 | E145: =E144+1 -> 139 | G145: 207 | I145: =G145-E145 -> 68 | K145: =IF(G145>1000,"Yes"," ") -> 
A146: 211248_s_at | C146: CHRD | E146: =E145+1 -> 140 | G146: 609 | I146: =G146-E146 -> 469 | K146: =IF(G146>1000,"Yes"," ") -> 
A147: 205161_s_at | C147: PEX11A | E147: =E146+1 -> 141 | G147: 409 | I147: =G147-E147 -> 268 | K147: =IF(G147>1000,"Yes"," ") -> 
A148: 209449_at | C148: LSM2 | E148: =E147+1 -> 142 | G148: 121 | I148: =G148-E148 -> -21 | K148: =IF(G148>1000,"Yes"," ") -> 
A149: 222190_s_at | C149: C16orf58 | E149: =E148+1 -> 143 | G149: 788 | I149: =G149-E149 -> 645 | K149: =IF(G149>1000,"Yes"," ") -> 
A150: 209714_s_at | C150: CDKN3 | E150: =E149+1 -> 144 | G150: 100 | I150: =G150-E150 -> -44 | K150: =IF(G150>1000,"Yes"," ") -> 
A151: 218931_at | C151: RAB17 | E151: =E150+1 -> 145 | G151: 266 | I151: =G151-E151 -> 121 | K151: =IF(G151>1000,"Yes"," ") -> 
A152: 221505_at | C152: ANP32E | E152: =E151+1 -> 146 | G152: 36 | I152: =G152-E152 -> -110 | K152: =IF(G152>1000,"Yes"," ") -> 
A153: 216267_s_at | C153: TMEM115 | E153: =E152+1 -> 147 | G153: 700 | I153: =G153-E153 -> 553 | K153: =IF(G153>1000,"Yes"," ") -> 
A154: 203554_x_at | C154: PTTG1 | E154: =E153+1 -> 148 | G154: 11 | I154: =G154-E154 -> -137 | K154: =IF(G154>1000,"Yes"," ") -> 
A155: 201695_s_at | C155: PNP | E155: =E154+1 -> 149 | G155: 75 | I155: =G155-E155 -> -74 | K155: =IF(G155>1000,"Yes"," ") -> 
A156: 203345_s_at | C156: MTF2 | E156: =E155+1 -> 150 | G156: 271 | I156: =G156-E156 -> 121 | K156: =IF(G156>1000,"Yes"," ") -> 
A157: 212495_at | C157: KDM4B | E157: =E156+1 -> 151 | G157: 619 | I157: =G157-E157 -> 468 | K157: =IF(G157>1000,"Yes"," ") -> 
A158: 200678_x_at | C158: GRN | E158: =E157+1 -> 152 | G158: 560 | I158: =G158-E158 -> 408 | K158: =IF(G158>1000,"Yes"," ") -> 
A159: 213102_at | C159: ACTR3 | E159: =E158+1 -> 153 | G159: 90 | I159: =G159-E159 -> -63 | K159: =IF(G159>1000,"Yes"," ") -> 
A160: 200753_x_at | C160: SRSF2 | E160: =E159+1 -> 154 | G160: 224 | I160: =G160-E160 -> 70 | K160: =IF(G160>1000,"Yes"," ") -> 
A161: 213310_at | C161: EIF2C2 | E161: =E160+1 -> 155 | G161: 282 | I161: =G161-E161 -> 127 | K161: =IF(G161>1000,"Yes"," ") -> 
A162: 202750_s_at | C162: TFIP11 | E162: =E161+1 -> 156 | G162: 1917 | I162: =G162-E162 -> 1761 | K162: =IF(G162>1000,"Yes"," ") -> Yes
A163: 201381_x_at | C163: CACYBP | E163: =E162+1 -> 157 | G163: 135 | I163: =G163-E163 -> -22 | K163: =IF(G163>1000,"Yes"," ") -> 
A164: 200715_x_at | C164: RPL13A | E164: =E163+1 -> 158 | G164: 936 | I164: =G164-E164 -> 778 | K164: =IF(G164>1000,"Yes"," ") -> 
A165: 204488_at | C165: DOLK | E165: =E164+1 -> 159 | G165: 1539 | I165: =G165-E165 -> 1380 | K165: =IF(G165>1000,"Yes"," ") -> Yes
A166: 216041_x_at | C166: GRN | E166: =E165+1 -> 160 | G166: 690 | I166: =G166-E166 -> 530 | K166: =IF(G166>1000,"Yes"," ") -> 
A167: 211874_s_at | C167: MYST4 | E167: =E166+1 -> 161 | G167: 392 | I167: =G167-E167 -> 231 | K167: =IF(G167>1000,"Yes"," ") -> 
A168: 218760_at | C168: COQ6 | E168: =E167+1 -> 162 | G168: 1295 | I168: =G168-E168 -> 1133 | K168: =IF(G168>1000,"Yes"," ") -> Yes
A169: 201390_s_at | C169: CSNK2B | E169: =E168+1 -> 163 | G169: 302 | I169: =G169-E169 -> 139 | K169: =IF(G169>1000,"Yes"," ") -> 
A170: 206245_s_at | C170: IVNS1ABP | E170: =E169+1 -> 164 | G170: 79 | I170: =G170-E170 -> -85 | K170: =IF(G170>1000,"Yes"," ") -> 
A171: 211323_s_at | C171: ITPR1 | E171: =E170+1 -> 165 | G171: 346 | I171: =G171-E171 -> 181 | K171: =IF(G171>1000,"Yes"," ") -> 
A172: 204067_at | C172: SUOX | E172: =E171+1 -> 166 | G172: 1196 | I172: =G172-E172 -> 1030 | K172: =IF(G172>1000,"Yes"," ") -> Yes
A173: 217938_s_at | C173: KCMF1 | E173: =E172+1 -> 167 | G173: 222 | I173: =G173-E173 -> 55 | K173: =IF(G173>1000,"Yes"," ") -> 
A174: 203414_at | C174: MMD | E174: =E173+1 -> 168 | G174: 76 | I174: =G174-E174 -> -92 | K174: =IF(G174>1000,"Yes"," ") -> 
A175: 201669_s_at | C175: MARCKS | E175: =E174+1 -> 169 | G175: 45 | I175: =G175-E175 -> -124 | K175: =IF(G175>1000,"Yes"," ") -> 
A176: 219687_at | C176: HHAT | E176: =E175+1 -> 170 | G176: 549 | I176: =G176-E176 -> 379 | K176: =IF(G176>1000,"Yes"," ") -> 
A177: 201670_s_at | C177: MARCKS | E177: =E176+1 -> 171 | G177: 68 | I177: =G177-E177 -> -103 | K177: =IF(G177>1000,"Yes"," ") -> 
A178: 203213_at | C178: CDK1 | E178: =E177+1 -> 172 | G178: 102 | I178: =G178-E178 -> -70 | K178: =IF(G178>1000,"Yes"," ") -> 
A179: 203453_at | C179: SCNN1A | E179: =E178+1 -> 173 | G179: 101 | I179: =G179-E179 -> -72 | K179: =IF(G179>1000,"Yes"," ") -> 
A180: 202200_s_at | C180: SRPK1 | E180: =E179+1 -> 174 | G180: 111 | I180: =G180-E180 -> -63 | K180: =IF(G180>1000,"Yes"," ") -> 
A181: 218009_s_at | C181: PRC1 | E181: =E180+1 -> 175 | G181: 83 | I181: =G181-E181 -> -92 | K181: =IF(G181>1000,"Yes"," ") -> 
A182: 212653_s_at | C182: EHBP1 | E182: =E181+1 -> 176 | G182: 136 | I182: =G182-E182 -> -40 | K182: =IF(G182>1000,"Yes"," ") -> 
A183: 201833_at | C183: HDAC2 | E183: =E182+1 -> 177 | G183: 108 | I183: =G183-E183 -> -69 | K183: =IF(G183>1000,"Yes"," ") -> 
A184: 222125_s_at | C184: P4HTM | E184: =E183+1 -> 178 | G184: 241 | I184: =G184-E184 -> 63 | K184: =IF(G184>1000,"Yes"," ") -> 
A185: 204318_s_at | C185: GTSE1 | E185: =E184+1 -> 179 | G185: 231 | I185: =G185-E185 -> 52 | K185: =IF(G185>1000,"Yes"," ") -> 
A186: 211712_s_at | C186: ANXA9 | E186: =E185+1 -> 180 | G186: 147 | I186: =G186-E186 -> -33 | K186: =IF(G186>1000,"Yes"," ") -> 
A187: 218355_at | C187: KIF4A | E187: =E186+1 -> 181 | G187: 183 | I187: =G187-E187 -> 2 | K187: =IF(G187>1000,"Yes"," ") -> 
A188: 202355_s_at | C188: GTF2F1 | E188: =E187+1 -> 182 | G188: 521 | I188: =G188-E188 -> 339 | K188: =IF(G188>1000,"Yes"," ") -> 
A189: 211495_x_at | C189: TNFSF12-TNFSF13 /// TNFSF13 | E189: =E188+1 -> 183 | G189: 925 | I189: =G189-E189 -> 742 | K189: =IF(G189>1000,"Yes"," ") -> 
A190: 212121_at | C190: TCTN3 | E190: =E189+1 -> 184 | G190: 1071 | I190: =G190-E190 -> 887 | K190: =IF(G190>1000,"Yes"," ") -> Yes
A191: 211023_at | C191: PDHB | E191: =E190+1 -> 185 | G191: 1303 | I191: =G191-E191 -> 1118 | K191: =IF(G191>1000,"Yes"," ") -> Yes
A192: 207949_s_at | C192: ICA1 | E192: =E191+1 -> 186 | G192: 781 | I192: =G192-E192 -> 595 | K192: =IF(G192>1000,"Yes"," ") -> 
A193: 218447_at | C193: C16orf61 | E193: =E192+1 -> 187 | G193: 152 | I193: =G193-E193 -> -35 | K193: =IF(G193>1000,"Yes"," ") -> 
A194: 221759_at | C194: G6PC3 | E194: =E193+1 -> 188 | G194: 693 | I194: =G194-E194 -> 505 | K194: =IF(G194>1000,"Yes"," ") -> 
A195: 218065_s_at | C195: TMEM9B | E195: =E194+1 -> 189 | G195: 1080 | I195: =G195-E195 -> 891 | K195: =IF(G195>1000,"Yes"," ") -> Yes
A196: 203336_s_at | C196: ITGB1BP1 | E196: =E195+1 -> 190 | G196: 158 | I196: =G196-E196 -> -32 | K196: =IF(G196>1000,"Yes"," ") -> 
A197: 209745_at | C197: COQ7 | E197: =E196+1 -> 191 | G197: 1485 | I197: =G197-E197 -> 1294 | K197: =IF(G197>1000,"Yes"," ") -> Yes
A198: 218976_at | C198: DNAJC12 | E198: =E197+1 -> 192 | G198: 99 | I198: =G198-E198 -> -93 | K198: =IF(G198>1000,"Yes"," ") -> 
A199: 218511_s_at | C199: PNPO | E199: =E198+1 -> 193 | G199: 755 | I199: =G199-E199 -> 562 | K199: =IF(G199>1000,"Yes"," ") -> 
A200: 209642_at | C200: BUB1 | E200: =E199+1 -> 194 | G200: 134 | I200: =G200-E200 -> -60 | K200: =IF(G200>1000,"Yes"," ") -> 
A201: 218510_x_at | C201: FAM134B | E201: =E200+1 -> 195 | G201: 290 | I201: =G201-E201 -> 95 | K201: =IF(G201>1000,"Yes"," ") -> 
A202: 209832_s_at | C202: CDT1 | E202: =E201+1 -> 196 | G202: 862 | I202: =G202-E202 -> 666 | K202: =IF(G202>1000,"Yes"," ") -> 
A203: 219065_s_at | C203: DPY30 /// MEMO1 | E203: =E202+1 -> 197 | G203: 125 | I203: =G203-E203 -> -72 | K203: =IF(G203>1000,"Yes"," ") -> 
... 812 more rows

Sheet Rank_Diff1_Annot
A1: Probe set | B1: Gene symbol | C1: Annotation
A2: 215963_x_at | B2: RPL3 | C2: Ribosomes, the complexes that catalyze protein synthesis, consist of a small 40S subunit and a large 60S subunit. Together these subunits are composed of 4 RNA species and approximately 80 structurally distinct proteins. This gene encodes a ribosomal protein that is a component of the 60S subunit. The protein belongs to the L3P family of ribosomal proteins and it is located in the cytoplasm. The protein can bind to the HIV-1 TAR mRNA, and it has been suggested that the protein contributes to tat-mediated transactivation. This gene is co-transcribed with several small nucleolar RNA genes, which are located in several of this gene's introns. Alternate transcriptional splice variants, encoding different isoforms, have been characterized. As is typical for genes encoding ribosomal proteins, there are multiple processed pseudogenes of this gene dispersed through the genome. RPL3 (Ribosomal Protein L3) is a Protein Coding gene. Diseases associated with RPL3 include diamond-blackfan anemia and hiv-1. Among its related pathways are Infectious disease and Transport to the Golgi and subsequent modification. GO annotations related to this gene include poly(A) RNA binding and structural constituent of ribosome. An important paralog of this gene is RPL3L. 1. Hallett et. al. A Gene Signature for Predicting Outcome in Patients withBasal-like Breast Cancer; 2. Wang et. al. Essential role of cell cycle regulatory genes p21 and p27 expression in inhibition ofbreast cancer cells by arsenic trioxide
A3: 201234_at | B3: ILK | C3: This gene encodes a protein with a kinase-like domain and four ankyrin-like repeats. The encoded protein associates at the cell membrane with the cytoplasmic domain of beta integrins, where it regulates integrin-mediated signal transduction. Activity of this protein is important in the epithelial to mesenchymal transition, and over-expression of this gene is implicated in tumor growth and metastasis. Alternative splicing results in multiple transcript variants. ILK (Integrin-Linked Kinase) is a Protein Coding gene. Diseases associated with ILK include scar contracture and bladder transitional cell carcinoma. Among its related pathways are Akt Signaling and ERK Signaling. GO annotations related to this gene includetransferase activity, transferring phosphorus-containing groupsandprotein tyrosine kinase activity. An important paralog of this gene is MAP3K9. 1. Dillon et. al. The phosphatidyl inositol 3-kinase signaling network: implications for humanbreast cancer; 2. Hannigan et. al. Integrin-linked kinase: a cancer therapeutic target unique among its ILK
A4: 200053_at | B4: SPAG7 | C4: SPAG7 (Sperm Associated Antigen 7) is a Protein Coding gene. Diseases associated with SPAG7 include chronic intestinal vascular insufficiency and pharyngitis. GO annotations related to this gene includenucleic acid binding. 1. Miller et. al. Gene Expression Profiles Differentiating BetweenBreast CancersClinically Responsive or Resistant to Letrozole; 2. Harada et. al. Genome-Wide Analysis ofPancreatic Cancer Using Microarray-Based Techniques
A5: 46256_at | B5: SPSB3 | C5: SPSB3 (SplA/Ryanodine Receptor Domain And SOCS Box Containing 3) is a Protein Coding gene. May be a substrate recognition component of a SCF-like ECS (Elongin BC-CUL2/5-SOCS-box protein) E3 ubiquitin-protein ligase complex which mediates the ubiquitination and subsequent proteasomal degradation of target proteins. 1. Zhang et. al. Identification and characterization of CCAAT/Enhancer Binding proteindelta (C/EBPdelta) target genes in G0 growth arrested mammary epithelial cells. Not much related literature.
A6: 35671_at | B6: GTF3C1 | C6: GTF3C1 (General Transcription Factor IIIC, Polypeptide 1, Alpha 220kDa) is a Protein Coding gene. Among its related pathways are Gene Expression and RNA Polymerase III Transcription Initiation. Required for RNA polymerase III-mediated transcription. Component of TFIIIC that initiates transcription complex assembly on tRNA and is required for transcription of 5S rRNA and other stable nuclear and cytoplasmic RNAs. Binds to the box B promoter element. 1. Cleator et. al. Gene expression patterns for doxorubicin (Adriamycin) and cyclophosphamide (Cytoxan) (AC) response and resistance
A7: 208759_at | B7: NCSTN | C7: This gene encodes a type I transmembrane glycoprotein that is an integral component of the multimeric gamma-secretase complex. The encoded protein cleaves integral membrane proteins, including Notch receptors and beta-amyloid precursor protein, and may be a stabilizing cofactor required for gamma-secretase complex assembly. The cleavage of beta-amyloid precursor protein yields amyloid beta peptide, the main component of the neuritic plaque and the hallmark lesion in the brains of patients with Alzheimer's disease; however, the nature of the encoded protein's role in Alzheimer's disease is not known for certain. Mutations in this gene are associated with familial acne inversa. A pseudogene of this gene is present on chromosome 21. Alternatively spliced transcript variants of this gene have been described, but the full-length nature of some of these variants has not been determined. NCSTN (Nicastrin) is a Protein Coding gene. Diseases associated with NCSTN include acne inversa, familial, 1 and acne. Among its related pathways are Signaling by GPCR and Downstream signaling events of B Cell Receptor (BCR). GO annotations related to this gene include peptidase activity and endopeptidase activity. 1. Zhang et. al. Biomarker and Pharmacologic Evaluation of the γ-Secretase Inhibitor PF-03084014 inBreast Cancer Models
A8: 203050_at | B8: TP53BP1 | C8: TP53BP1 (Tumor Protein P53 Binding Protein 1) is a Protein Coding gene. Diseases associated with TP53BP1 include riddle syndrome and ataxia-telangiectasia. Among its related pathways are Cell Cycle, Mitotic and DNA Damage. GO annotations related to this gene include sequence-specific DNA binding and p53 binding. Plays a key role in the response to DNA damage. May have a role in checkpoint signaling during mitosis. Enhances TP53-mediated transcriptional activation. 1. Gianni et. al. Gene Expression Profiles in Paraffin-Embedded Core Biopsy Tissue PredictResponse to Chemotherapyin Women With Locally AdvancedBreast Cancer; 2. Song et. al. An miR-502–Binding Site Single-Nucleotide Polymorphism in the 3′-Untranslated Region of the SET8 Gene Is Associated with Early Age ofBreast Cancer Onset
A9: 200809_x_at | B9: RPL12 | C9: Ribosomes, the organelles that catalyze protein synthesis, consist of a small 40S subunit and a large 60S subunit. Together these subunits are composed of 4 RNA species and approximately 80 structurally distinct proteins. This gene encodes a ribosomal protein that is a component of the 60S subunit. The protein belongs to the L11P family of ribosomal proteins. It is located in the cytoplasm. The protein binds directly to the 26S rRNA. This gene is co-transcribed with the U65 snoRNA, which is located in its fourth intron. As is typical for genes encoding ribosomal proteins, there are multiple processed pseudogenes of this gene dispersed through the genome. RPL12 (Ribosomal Protein L12) is a Protein Coding gene. Among its related pathways are Infectious disease and Transport to the Golgi and subsequent modification. GO annotations related to this gene include poly(A) RNA binding and structural constituent of ribosome. 1. Aaroe et. al.Gene expression profilingof peripheral blood cells for early detection of breast cancer
A10: 200814_at | B10: PSME1 | C10: The 26S proteasome is a multicatalytic proteinase complex with a highly ordered structure composed of 2 complexes, a 20S core and a 19S regulator. The 20S core is composed of 4 rings of 28 non-identical subunits; 2 rings are composed of 7 alpha subunits and 2 rings are composed of 7 beta subunits. The 19S regulator is composed of a base, which contains 6 ATPase subunits and 2 non-ATPase subunits, and a lid, which contains up to 10 non-ATPase subunits. Proteasomes are distributed throughout eukaryotic cells at a high concentration and cleave peptides in an ATP/ubiquitin-dependent process in a non-lysosomal pathway. An essential function of a modified proteasome, the immunoproteasome, is the processing of class I MHC peptides. The immunoproteasome contains an alternate regulator, referred to as the 11S regulator or PA28, that replaces the 19S regulator. Three subunits (alpha, beta and gamma) of the 11S regulator have been identified. This gene encodes the alpha subunit of the 11S regulator, one of the two 11S subunits that is induced by gamma-interferon. Three alpha and three beta subunits combine to form a heterohexameric ring. Alternative splicing results in multiple transcript variants. PSME1 (Proteasome Activator Subunit 1) is a Protein Coding gene. Among its related pathways are Immune System and Signaling by GPCR. GO annotations related to this gene include endopeptidase activator activity. An important paralog of this gene is PSME3. 1. Jansen et. al. Molecular Classification ofTamoxifen-Resistant Breast Carcinomas by Gene Expression Profiling
A11: 218089_at | B11: C20orf4 | C11: C20orf4 has an aliase of AAR2. This gene encodes the homolog of the yeast A1-alpha2 repressin protein that is involved in mRNA splicing. Alternately spliced transcript variants have been found for this gene. AAR2 (AAR2 Splicing Factor Homolog) is a Protein Coding gene. 1. Lidereau et. al. Method for predicting the occurrence of metastasis inbreast cancer patients (only 1 cited)

Sheet Rank_Diff2
A1: In this study, we implement a rank difference analysis by settingsuper-delta as the reference.
A3: All the ranks are inverse ranks, that saying, the largest absolute t-statistic (the most significant) has rank 1, and so forth.
A5: Probe set name | C5: Gene symbol | E5: Super-delta Rank | G5: Quantile Rank | I5: Rank Difference | L5: Number of genesNOT significant for quantile normalization
A7: 201930_at | C7: MCM6 | E7: 1 | G7: 3 | I7: =G7-E7 -> 2 | K7: =IF(G7>1000,"Yes"," ") ->  | L7: =COUNTIF(K7:K1006,"Yes") -> 305
A8: 208628_s_at | C8: YBX1 | E8: =E7+1 -> 2 | G8: 4 | I8: =G8-E8 -> 2 | K8: =IF(G8>1000,"Yes"," ") -> 
A9: 204962_s_at | C9: CENPA | E9: =E8+1 -> 3 | G9: 11 | I9: =G9-E9 -> 8 | K9: =IF(G9>1000,"Yes"," ") -> 
A10: 214039_s_at | C10: LAPTM4B | E10: =E9+1 -> 4 | G10: 18 | I10: =G10-E10 -> 14 | K10: =IF(G10>1000,"Yes"," ") -> 
A11: 208627_s_at | C11: YBX1 | E11: =E10+1 -> 5 | G11: 10 | I11: =G11-E11 -> 5 | K11: =IF(G11>1000,"Yes"," ") -> 
A12: 202870_s_at | C12: CDC20 | E12: =E11+1 -> 6 | G12: 20 | I12: =G12-E12 -> 14 | K12: =IF(G12>1000,"Yes"," ") -> 
A13: 213911_s_at | C13: H2AFZ | E13: =E12+1 -> 7 | G13: 8 | I13: =G13-E13 -> 1 | K13: =IF(G13>1000,"Yes"," ") -> 
A14: 200934_at | C14: DEK | E14: =E13+1 -> 8 | G14: 22 | I14: =G14-E14 -> 14 | K14: =IF(G14>1000,"Yes"," ") -> 
A15: 218692_at | C15: SYBU | E15: =E14+1 -> 9 | G15: 7 | I15: =G15-E15 -> -2 | K15: =IF(G15>1000,"Yes"," ") -> 
A16: 212736_at | C16: C16orf45 | E16: =E15+1 -> 10 | G16: 5 | I16: =G16-E16 -> -5 | K16: =IF(G16>1000,"Yes"," ") -> 
A17: 203554_x_at | C17: PTTG1 | E17: =E16+1 -> 11 | G17: 148 | I17: =G17-E17 -> 137 | K17: =IF(G17>1000,"Yes"," ") -> 
A18: 208767_s_at | C18: LAPTM4B | E18: =E17+1 -> 12 | G18: 26 | I18: =G18-E18 -> 14 | K18: =IF(G18>1000,"Yes"," ") -> 
A19: 213664_at | C19: SLC1A1 | E19: =E18+1 -> 13 | G19: 74 | I19: =G19-E19 -> 61 | K19: =IF(G19>1000,"Yes"," ") -> 
A20: 204822_at | C20: TTK | E20: =E19+1 -> 14 | G20: 39 | I20: =G20-E20 -> 25 | K20: =IF(G20>1000,"Yes"," ") -> 
A21: 203358_s_at | C21: EZH2 | E21: =E20+1 -> 15 | G21: 19 | I21: =G21-E21 -> 4 | K21: =IF(G21>1000,"Yes"," ") -> 
A22: 202095_s_at | C22: BIRC5 | E22: =E21+1 -> 16 | G22: 21 | I22: =G22-E22 -> 5 | K22: =IF(G22>1000,"Yes"," ") -> 
A23: 202107_s_at | C23: MCM2 | E23: =E22+1 -> 17 | G23: 27 | I23: =G23-E23 -> 10 | K23: =IF(G23>1000,"Yes"," ") -> 
A24: 213101_s_at | C24: ACTR3 | E24: =E23+1 -> 18 | G24: 38 | I24: =G24-E24 -> 20 | K24: =IF(G24>1000,"Yes"," ") -> 
A25: 201088_at | C25: KPNA2 | E25: =E24+1 -> 19 | G25: 48 | I25: =G25-E25 -> 29 | K25: =IF(G25>1000,"Yes"," ") -> 
A26: 221676_s_at | C26: CORO1C | E26: =E25+1 -> 20 | G26: 37 | I26: =G26-E26 -> 17 | K26: =IF(G26>1000,"Yes"," ") -> 
A27: 204170_s_at | C27: CKS2 | E27: =E26+1 -> 21 | G27: 44 | I27: =G27-E27 -> 23 | K27: =IF(G27>1000,"Yes"," ") -> 
A28: 203625_x_at | C28: SKP2 | E28: =E27+1 -> 22 | G28: 64 | I28: =G28-E28 -> 42 | K28: =IF(G28>1000,"Yes"," ") -> 
A29: 202705_at | C29: CCNB2 | E29: =E28+1 -> 23 | G29: 36 | I29: =G29-E29 -> 13 | K29: =IF(G29>1000,"Yes"," ") -> 
A30: 201890_at | C30: RRM2 | E30: =E29+1 -> 24 | G30: 61 | I30: =G30-E30 -> 37 | K30: =IF(G30>1000,"Yes"," ") -> 
A31: 214440_at | C31: NAT1 | E31: =E30+1 -> 25 | G31: 88 | I31: =G31-E31 -> 63 | K31: =IF(G31>1000,"Yes"," ") -> 
A32: 202413_s_at | C32: USP1 | E32: =E31+1 -> 26 | G32: 60 | I32: =G32-E32 -> 34 | K32: =IF(G32>1000,"Yes"," ") -> 
A33: 204703_at | C33: IFT88 | E33: =E32+1 -> 27 | G33: 1 | I33: =G33-E33 -> -26 | K33: =IF(G33>1000,"Yes"," ") -> 
A34: 205509_at | C34: CPB1 | E34: =E33+1 -> 28 | G34: 100 | I34: =G34-E34 -> 72 | K34: =IF(G34>1000,"Yes"," ") -> 
A35: 218437_s_at | C35: LZTFL1 | E35: =E34+1 -> 29 | G35: 24 | I35: =G35-E35 -> -5 | K35: =IF(G35>1000,"Yes"," ") -> 
A36: 200996_at | C36: ACTR3 | E36: =E35+1 -> 30 | G36: 34 | I36: =G36-E36 -> 4 | K36: =IF(G36>1000,"Yes"," ") -> 
A37: 218883_s_at | C37: MLF1IP | E37: =E36+1 -> 31 | G37: 96 | I37: =G37-E37 -> 65 | K37: =IF(G37>1000,"Yes"," ") -> 
A38: 201291_s_at | C38: TOP2A | E38: =E37+1 -> 32 | G38: 105 | I38: =G38-E38 -> 73 | K38: =IF(G38>1000,"Yes"," ") -> 
A39: 204686_at | C39: IRS1 | E39: =E38+1 -> 33 | G39: 68 | I39: =G39-E39 -> 35 | K39: =IF(G39>1000,"Yes"," ") -> 
A40: 214428_x_at | C40: C4A /// C4B /// LOC100509001 | E40: =E39+1 -> 34 | G40: 92 | I40: =G40-E40 -> 58 | K40: =IF(G40>1000,"Yes"," ") -> 
A41: 208451_s_at | C41: C4A /// C4B /// LOC100509001 | E41: =E40+1 -> 35 | G41: 86 | I41: =G41-E41 -> 51 | K41: =IF(G41>1000,"Yes"," ") -> 
A42: 221505_at | C42: ANP32E | E42: =E41+1 -> 36 | G42: 146 | I42: =G42-E42 -> 110 | K42: =IF(G42>1000,"Yes"," ") -> 
A43: 203418_at | C43: CCNA2 | E43: =E42+1 -> 37 | G43: 17 | I43: =G43-E43 -> -20 | K43: =IF(G43>1000,"Yes"," ") -> 
A44: 218236_s_at | C44: PRKD3 | E44: =E43+1 -> 38 | G44: 69 | I44: =G44-E44 -> 31 | K44: =IF(G44>1000,"Yes"," ") -> 
A45: 210052_s_at | C45: TPX2 | E45: =E44+1 -> 39 | G45: 53 | I45: =G45-E45 -> 14 | K45: =IF(G45>1000,"Yes"," ") -> 
A46: 202954_at | C46: UBE2C | E46: =E45+1 -> 40 | G46: 87 | I46: =G46-E46 -> 47 | K46: =IF(G46>1000,"Yes"," ") -> 
A47: 40016_g_at | C47: MAST4 | E47: =E46+1 -> 41 | G47: 33 | I47: =G47-E47 -> -8 | K47: =IF(G47>1000,"Yes"," ") -> 
A48: 205441_at | C48: OCEL1 | E48: =E47+1 -> 42 | G48: 2 | I48: =G48-E48 -> -40 | K48: =IF(G48>1000,"Yes"," ") -> 
A49: 211762_s_at | C49: KPNA2 | E49: =E48+1 -> 43 | G49: 110 | I49: =G49-E49 -> 67 | K49: =IF(G49>1000,"Yes"," ") -> 
A50: 203143_s_at | C50: KIAA0040 | E50: =E49+1 -> 44 | G50: 12 | I50: =G50-E50 -> -32 | K50: =IF(G50>1000,"Yes"," ") -> 
A51: 201669_s_at | C51: MARCKS | E51: =E50+1 -> 45 | G51: 169 | I51: =G51-E51 -> 124 | K51: =IF(G51>1000,"Yes"," ") -> 
A52: 211042_x_at | C52: MCAM | E52: =E51+1 -> 46 | G52: 82 | I52: =G52-E52 -> 36 | K52: =IF(G52>1000,"Yes"," ") -> 
A53: 218542_at | C53: CEP55 | E53: =E52+1 -> 47 | G53: 50 | I53: =G53-E53 -> 3 | K53: =IF(G53>1000,"Yes"," ") -> 
A54: 202911_at | C54: MSH6 | E54: =E53+1 -> 48 | G54: 35 | I54: =G54-E54 -> -13 | K54: =IF(G54>1000,"Yes"," ") -> 
A55: 204934_s_at | C55: HPN | E55: =E54+1 -> 49 | G55: 14 | I55: =G55-E55 -> -35 | K55: =IF(G55>1000,"Yes"," ") -> 
A56: 208808_s_at | C56: HMGB2 | E56: =E55+1 -> 50 | G56: 121 | I56: =G56-E56 -> 71 | K56: =IF(G56>1000,"Yes"," ") -> 
A57: 204026_s_at | C57: ZWINT | E57: =E56+1 -> 51 | G57: 103 | I57: =G57-E57 -> 52 | K57: =IF(G57>1000,"Yes"," ") -> 
A58: 206197_at | C58: NME5 | E58: =E57+1 -> 52 | G58: 6 | I58: =G58-E58 -> -46 | K58: =IF(G58>1000,"Yes"," ") -> 
A59: 220094_s_at | C59: CCDC90A | E59: =E58+1 -> 53 | G59: 67 | I59: =G59-E59 -> 14 | K59: =IF(G59>1000,"Yes"," ") -> 
A60: 202951_at | C60: STK38 | E60: =E59+1 -> 54 | G60: 47 | I60: =G60-E60 -> -7 | K60: =IF(G60>1000,"Yes"," ") -> 
A61: 203362_s_at | C61: MAD2L1 | E61: =E60+1 -> 55 | G61: 90 | I61: =G61-E61 -> 35 | K61: =IF(G61>1000,"Yes"," ") -> 
A62: 213699_s_at | C62: YWHAQ | E62: =E61+1 -> 56 | G62: 77 | I62: =G62-E62 -> 21 | K62: =IF(G62>1000,"Yes"," ") -> 
A63: 200052_s_at | C63: ILF2 | E63: =E62+1 -> 57 | G63: 102 | I63: =G63-E63 -> 45 | K63: =IF(G63>1000,"Yes"," ") -> 
A64: 205352_at | C64: SERPINI1 | E64: =E63+1 -> 58 | G64: 109 | I64: =G64-E64 -> 51 | K64: =IF(G64>1000,"Yes"," ") -> 
A65: 209205_s_at | C65: LMO4 | E65: =E64+1 -> 59 | G65: 215 | I65: =G65-E65 -> 156 | K65: =IF(G65>1000,"Yes"," ") -> 
A66: 212320_at | C66: TUBB | E66: =E65+1 -> 60 | G66: 25 | I66: =G66-E66 -> -35 | K66: =IF(G66>1000,"Yes"," ") -> 
A67: 203764_at | C67: DLGAP5 | E67: =E66+1 -> 61 | G67: 85 | I67: =G67-E67 -> 24 | K67: =IF(G67>1000,"Yes"," ") -> 
A68: 203284_s_at | C68: HS2ST1 | E68: =E67+1 -> 62 | G68: 73 | I68: =G68-E68 -> 11 | K68: =IF(G68>1000,"Yes"," ") -> 
A69: 219918_s_at | C69: ASPM | E69: =E68+1 -> 63 | G69: 111 | I69: =G69-E69 -> 48 | K69: =IF(G69>1000,"Yes"," ") -> 
A70: 204900_x_at | C70: SAP30 | E70: =E69+1 -> 64 | G70: 101 | I70: =G70-E70 -> 37 | K70: =IF(G70>1000,"Yes"," ") -> 
A71: 208103_s_at | C71: ANP32E | E71: =E70+1 -> 65 | G71: 138 | I71: =G71-E71 -> 73 | K71: =IF(G71>1000,"Yes"," ") -> 
A72: 201923_at | C72: PRDX4 | E72: =E71+1 -> 66 | G72: 108 | I72: =G72-E72 -> 42 | K72: =IF(G72>1000,"Yes"," ") -> 
A73: 201970_s_at | C73: NASP | E73: =E72+1 -> 67 | G73: 137 | I73: =G73-E73 -> 70 | K73: =IF(G73>1000,"Yes"," ") -> 
A74: 201670_s_at | C74: MARCKS | E74: =E73+1 -> 68 | G74: 171 | I74: =G74-E74 -> 103 | K74: =IF(G74>1000,"Yes"," ") -> 
A75: 221710_x_at | C75: FAM176B | E75: =E74+1 -> 69 | G75: 75 | I75: =G75-E75 -> 6 | K75: =IF(G75>1000,"Yes"," ") -> 
A76: 201180_s_at | C76: GNAI3 | E76: =E75+1 -> 70 | G76: 72 | I76: =G76-E76 -> 2 | K76: =IF(G76>1000,"Yes"," ") -> 
A77: 219359_at | C77: ATHL1 | E77: =E76+1 -> 71 | G77: 93 | I77: =G77-E77 -> 22 | K77: =IF(G77>1000,"Yes"," ") -> 
A78: 200790_at | C78: ODC1 | E78: =E77+1 -> 72 | G78: 207 | I78: =G78-E78 -> 135 | K78: =IF(G78>1000,"Yes"," ") -> 
A79: 200693_at | C79: YWHAQ | E79: =E78+1 -> 73 | G79: 97 | I79: =G79-E79 -> 24 | K79: =IF(G79>1000,"Yes"," ") -> 
A80: 202633_at | C80: TOPBP1 | E80: =E79+1 -> 74 | G80: 56 | I80: =G80-E80 -> -18 | K80: =IF(G80>1000,"Yes"," ") -> 
A81: 201695_s_at | C81: PNP | E81: =E80+1 -> 75 | G81: 149 | I81: =G81-E81 -> 74 | K81: =IF(G81>1000,"Yes"," ") -> 
A82: 203414_at | C82: MMD | E82: =E81+1 -> 76 | G82: 168 | I82: =G82-E82 -> 92 | K82: =IF(G82>1000,"Yes"," ") -> 
A83: 209408_at | C83: KIF2C | E83: =E82+1 -> 77 | G83: 95 | I83: =G83-E83 -> 18 | K83: =IF(G83>1000,"Yes"," ") -> 
A84: 203439_s_at | C84: STC2 | E84: =E83+1 -> 78 | G84: 83 | I84: =G84-E84 -> 5 | K84: =IF(G84>1000,"Yes"," ") -> 
A85: 206245_s_at | C85: IVNS1ABP | E85: =E84+1 -> 79 | G85: 164 | I85: =G85-E85 -> 85 | K85: =IF(G85>1000,"Yes"," ") -> 
A86: 201292_at | C86: TOP2A | E86: =E85+1 -> 80 | G86: 213 | I86: =G86-E86 -> 133 | K86: =IF(G86>1000,"Yes"," ") -> 
A87: 214077_x_at | C87: MEIS3P1 | E87: =E86+1 -> 81 | G87: 28 | I87: =G87-E87 -> -53 | K87: =IF(G87>1000,"Yes"," ") -> 
A88: 202097_at | C88: NUP153 | E88: =E87+1 -> 82 | G88: 55 | I88: =G88-E88 -> -27 | K88: =IF(G88>1000,"Yes"," ") -> 
A89: 218009_s_at | C89: PRC1 | E89: =E88+1 -> 83 | G89: 175 | I89: =G89-E89 -> 92 | K89: =IF(G89>1000,"Yes"," ") -> 
A90: 211070_x_at | C90: DBI | E90: =E89+1 -> 84 | G90: 135 | I90: =G90-E90 -> 51 | K90: =IF(G90>1000,"Yes"," ") -> 
A91: 211714_x_at | C91: TUBB | E91: =E90+1 -> 85 | G91: 45 | I91: =G91-E91 -> -40 | K91: =IF(G91>1000,"Yes"," ") -> 
A92: 204244_s_at | C92: DBF4 | E92: =E91+1 -> 86 | G92: 57 | I92: =G92-E92 -> -29 | K92: =IF(G92>1000,"Yes"," ") -> 
A93: 206401_s_at | C93: MAPT | E93: =E92+1 -> 87 | G93: 63 | I93: =G93-E93 -> -24 | K93: =IF(G93>1000,"Yes"," ") -> 
A94: 209773_s_at | C94: RRM2 | E94: =E93+1 -> 88 | G94: 134 | I94: =G94-E94 -> 46 | K94: =IF(G94>1000,"Yes"," ") -> 
A95: 200853_at | C95: H2AFZ | E95: =E94+1 -> 89 | G95: 112 | I95: =G95-E95 -> 23 | K95: =IF(G95>1000,"Yes"," ") -> 
A96: 213102_at | C96: ACTR3 | E96: =E95+1 -> 90 | G96: 153 | I96: =G96-E96 -> 63 | K96: =IF(G96>1000,"Yes"," ") -> 
A97: 219212_at | C97: HSPA14 | E97: =E96+1 -> 91 | G97: 122 | I97: =G97-E97 -> 31 | K97: =IF(G97>1000,"Yes"," ") -> 
A98: 217755_at | C98: HN1 | E98: =E97+1 -> 92 | G98: 227 | I98: =G98-E98 -> 135 | K98: =IF(G98>1000,"Yes"," ") -> 
A99: 217356_s_at | C99: PGK1 | E99: =E98+1 -> 93 | G99: 65 | I99: =G99-E99 -> -28 | K99: =IF(G99>1000,"Yes"," ") -> 
A100: 209026_x_at | C100: TUBB | E100: =E99+1 -> 94 | G100: 62 | I100: =G100-E100 -> -32 | K100: =IF(G100>1000,"Yes"," ") -> 
A101: 210559_s_at | C101: CDK1 | E101: =E100+1 -> 95 | G101: 203 | I101: =G101-E101 -> 108 | K101: =IF(G101>1000,"Yes"," ") -> 
A102: 209025_s_at | C102: SYNCRIP | E102: =E101+1 -> 96 | G102: 130 | I102: =G102-E102 -> 34 | K102: =IF(G102>1000,"Yes"," ") -> 
A103: 202580_x_at | C103: FOXM1 | E103: =E102+1 -> 97 | G103: 274 | I103: =G103-E103 -> 177 | K103: =IF(G103>1000,"Yes"," ") -> 
A104: 217972_at | C104: CHCHD3 | E104: =E103+1 -> 98 | G104: 78 | I104: =G104-E104 -> -20 | K104: =IF(G104>1000,"Yes"," ") -> 
A105: 218976_at | C105: DNAJC12 | E105: =E104+1 -> 99 | G105: 192 | I105: =G105-E105 -> 93 | K105: =IF(G105>1000,"Yes"," ") -> 
A106: 209714_s_at | C106: CDKN3 | E106: =E105+1 -> 100 | G106: 144 | I106: =G106-E106 -> 44 | K106: =IF(G106>1000,"Yes"," ") -> 
A107: 203453_at | C107: SCNN1A | E107: =E106+1 -> 101 | G107: 173 | I107: =G107-E107 -> 72 | K107: =IF(G107>1000,"Yes"," ") -> 
A108: 203213_at | C108: CDK1 | E108: =E107+1 -> 102 | G108: 172 | I108: =G108-E108 -> 70 | K108: =IF(G108>1000,"Yes"," ") -> 
A109: 220134_x_at | C109: FAM176B | E109: =E108+1 -> 103 | G109: 127 | I109: =G109-E109 -> 24 | K109: =IF(G109>1000,"Yes"," ") -> 
A110: 218350_s_at | C110: GMNN | E110: =E109+1 -> 104 | G110: 129 | I110: =G110-E110 -> 25 | K110: =IF(G110>1000,"Yes"," ") -> 
A111: 214710_s_at | C111: CCNB1 | E111: =E110+1 -> 105 | G111: 136 | I111: =G111-E111 -> 31 | K111: =IF(G111>1000,"Yes"," ") -> 
A112: 214657_s_at | C112: NEAT1 | E112: =E111+1 -> 106 | G112: 300 | I112: =G112-E112 -> 194 | K112: =IF(G112>1000,"Yes"," ") -> 
A113: 214455_at | C113: HIST1H2BC | E113: =E112+1 -> 107 | G113: 218 | I113: =G113-E113 -> 111 | K113: =IF(G113>1000,"Yes"," ") -> 
A114: 201833_at | C114: HDAC2 | E114: =E113+1 -> 108 | G114: 177 | I114: =G114-E114 -> 69 | K114: =IF(G114>1000,"Yes"," ") -> 
A115: 212021_s_at | C115: MKI67 | E115: =E114+1 -> 109 | G115: 52 | I115: =G115-E115 -> -57 | K115: =IF(G115>1000,"Yes"," ") -> 
A116: 211519_s_at | C116: KIF2C | E116: =E115+1 -> 110 | G116: 89 | I116: =G116-E116 -> -21 | K116: =IF(G116>1000,"Yes"," ") -> 
A117: 202200_s_at | C117: SRPK1 | E117: =E116+1 -> 111 | G117: 174 | I117: =G117-E117 -> 63 | K117: =IF(G117>1000,"Yes"," ") -> 
A118: 216264_s_at | C118: LAMB2 | E118: =E117+1 -> 112 | G118: 79 | I118: =G118-E118 -> -33 | K118: =IF(G118>1000,"Yes"," ") -> 
A119: 204825_at | C119: MELK | E119: =E118+1 -> 113 | G119: 224 | I119: =G119-E119 -> 111 | K119: =IF(G119>1000,"Yes"," ") -> 
A120: 218755_at | C120: KIF20A | E120: =E119+1 -> 114 | G120: 126 | I120: =G120-E120 -> 12 | K120: =IF(G120>1000,"Yes"," ") -> 
A121: 209218_at | C121: SQLE | E121: =E120+1 -> 115 | G121: 281 | I121: =G121-E121 -> 166 | K121: =IF(G121>1000,"Yes"," ") -> 
A122: 202428_x_at | C122: DBI | E122: =E121+1 -> 116 | G122: 209 | I122: =G122-E122 -> 93 | K122: =IF(G122>1000,"Yes"," ") -> 
A123: 201761_at | C123: MTHFD2 | E123: =E122+1 -> 117 | G123: 200 | I123: =G123-E123 -> 83 | K123: =IF(G123>1000,"Yes"," ") -> 
A124: 208941_s_at | C124: SEPHS1 | E124: =E123+1 -> 118 | G124: 239 | I124: =G124-E124 -> 121 | K124: =IF(G124>1000,"Yes"," ") -> 
A125: 204768_s_at | C125: FEN1 | E125: =E124+1 -> 119 | G125: 120 | I125: =G125-E125 -> 1 | K125: =IF(G125>1000,"Yes"," ") -> 
A126: 212354_at | C126: SULF1 | E126: =E125+1 -> 120 | G126: 125 | I126: =G126-E126 -> 5 | K126: =IF(G126>1000,"Yes"," ") -> 
A127: 209449_at | C127: LSM2 | E127: =E126+1 -> 121 | G127: 142 | I127: =G127-E127 -> 21 | K127: =IF(G127>1000,"Yes"," ") -> 
A128: 208712_at | C128: CCND1 | E128: =E127+1 -> 122 | G128: 288 | I128: =G128-E128 -> 166 | K128: =IF(G128>1000,"Yes"," ") -> 
A129: 201980_s_at | C129: RSU1 | E129: =E128+1 -> 123 | G129: 208 | I129: =G129-E129 -> 85 | K129: =IF(G129>1000,"Yes"," ") -> 
A130: 202779_s_at | C130: UBE2S | E130: =E129+1 -> 124 | G130: 310 | I130: =G130-E130 -> 186 | K130: =IF(G130>1000,"Yes"," ") -> 
A131: 219065_s_at | C131: DPY30 /// MEMO1 | E131: =E130+1 -> 125 | G131: 197 | I131: =G131-E131 -> 72 | K131: =IF(G131>1000,"Yes"," ") -> 
A132: 213226_at | C132: CCNA2 | E132: =E131+1 -> 126 | G132: 118 | I132: =G132-E132 -> -8 | K132: =IF(G132>1000,"Yes"," ") -> 
A133: 209024_s_at | C133: SYNCRIP | E133: =E132+1 -> 127 | G133: 202 | I133: =G133-E133 -> 75 | K133: =IF(G133>1000,"Yes"," ") -> 
A134: 202412_s_at | C134: USP1 | E134: =E133+1 -> 128 | G134: 250 | I134: =G134-E134 -> 122 | K134: =IF(G134>1000,"Yes"," ") -> 
A135: 205225_at | C135: ESR1 | E135: =E134+1 -> 129 | G135: 400 | I135: =G135-E135 -> 271 | K135: =IF(G135>1000,"Yes"," ") -> 
A136: 213234_at | C136: KIAA1467 | E136: =E135+1 -> 130 | G136: 58 | I136: =G136-E136 -> -72 | K136: =IF(G136>1000,"Yes"," ") -> 
A137: 204045_at | C137: TCEAL1 | E137: =E136+1 -> 131 | G137: 15 | I137: =G137-E137 -> -116 | K137: =IF(G137>1000,"Yes"," ") -> 
A138: 216237_s_at | C138: MCM5 | E138: =E137+1 -> 132 | G138: 214 | I138: =G138-E138 -> 82 | K138: =IF(G138>1000,"Yes"," ") -> 
A139: 210958_s_at | C139: MAST4 | E139: =E138+1 -> 133 | G139: 30 | I139: =G139-E139 -> -103 | K139: =IF(G139>1000,"Yes"," ") -> 
A140: 209642_at | C140: BUB1 | E140: =E139+1 -> 134 | G140: 194 | I140: =G140-E140 -> 60 | K140: =IF(G140>1000,"Yes"," ") -> 
A141: 201381_x_at | C141: CACYBP | E141: =E140+1 -> 135 | G141: 157 | I141: =G141-E141 -> 22 | K141: =IF(G141>1000,"Yes"," ") -> 
A142: 212653_s_at | C142: EHBP1 | E142: =E141+1 -> 136 | G142: 176 | I142: =G142-E142 -> 40 | K142: =IF(G142>1000,"Yes"," ") -> 
A143: 204767_s_at | C143: FEN1 | E143: =E142+1 -> 137 | G143: 94 | I143: =G143-E143 -> -43 | K143: =IF(G143>1000,"Yes"," ") -> 
A144: 219148_at | C144: PBK | E144: =E143+1 -> 138 | G144: 217 | I144: =G144-E144 -> 79 | K144: =IF(G144>1000,"Yes"," ") -> 
A145: 203214_x_at | C145: CDK1 | E145: =E144+1 -> 139 | G145: 259 | I145: =G145-E145 -> 120 | K145: =IF(G145>1000,"Yes"," ") -> 
A146: 200638_s_at | C146: YWHAZ | E146: =E145+1 -> 140 | G146: 246 | I146: =G146-E146 -> 106 | K146: =IF(G146>1000,"Yes"," ") -> 
A147: 212426_s_at | C147: YWHAQ | E147: =E146+1 -> 141 | G147: 378 | I147: =G147-E147 -> 237 | K147: =IF(G147>1000,"Yes"," ") -> 
A148: 214051_at | C148: TMSB15B | E148: =E147+1 -> 142 | G148: 438 | I148: =G148-E148 -> 296 | K148: =IF(G148>1000,"Yes"," ") -> 
A149: 206102_at | C149: GINS1 | E149: =E148+1 -> 143 | G149: 260 | I149: =G149-E149 -> 117 | K149: =IF(G149>1000,"Yes"," ") -> 
A150: 203929_s_at | C150: MAPT | E150: =E149+1 -> 144 | G150: 238 | I150: =G150-E150 -> 94 | K150: =IF(G150>1000,"Yes"," ") -> 
A151: 204023_at | C151: RFC4 | E151: =E150+1 -> 145 | G151: 308 | I151: =G151-E151 -> 163 | K151: =IF(G151>1000,"Yes"," ") -> 
A152: 200738_s_at | C152: PGK1 | E152: =E151+1 -> 146 | G152: 221 | I152: =G152-E152 -> 75 | K152: =IF(G152>1000,"Yes"," ") -> 
A153: 211712_s_at | C153: ANXA9 | E153: =E152+1 -> 147 | G153: 180 | I153: =G153-E153 -> 33 | K153: =IF(G153>1000,"Yes"," ") -> 
A154: 207828_s_at | C154: CENPF | E154: =E153+1 -> 148 | G154: 434 | I154: =G154-E154 -> 286 | K154: =IF(G154>1000,"Yes"," ") -> 
A155: 208672_s_at | C155: SRSF3 | E155: =E154+1 -> 149 | G155: 59 | I155: =G155-E155 -> -90 | K155: =IF(G155>1000,"Yes"," ") -> 
A156: 203255_at | C156: FBXO11 | E156: =E155+1 -> 150 | G156: 244 | I156: =G156-E156 -> 94 | K156: =IF(G156>1000,"Yes"," ") -> 
A157: 217762_s_at | C157: RAB31 | E157: =E156+1 -> 151 | G157: 229 | I157: =G157-E157 -> 78 | K157: =IF(G157>1000,"Yes"," ") -> 
A158: 218447_at | C158: C16orf61 | E158: =E157+1 -> 152 | G158: 187 | I158: =G158-E158 -> 35 | K158: =IF(G158>1000,"Yes"," ") -> 
A159: 202613_at | C159: CTPS | E159: =E158+1 -> 153 | G159: 304 | I159: =G159-E159 -> 151 | K159: =IF(G159>1000,"Yes"," ") -> 
A160: 200783_s_at | C160: STMN1 | E160: =E159+1 -> 154 | G160: 280 | I160: =G160-E160 -> 126 | K160: =IF(G160>1000,"Yes"," ") -> 
A161: 201215_at | C161: PLS3 | E161: =E160+1 -> 155 | G161: 442 | I161: =G161-E161 -> 287 | K161: =IF(G161>1000,"Yes"," ") -> 
A162: 221139_s_at | C162: CSAD | E162: =E161+1 -> 156 | G162: 133 | I162: =G162-E162 -> -23 | K162: =IF(G162>1000,"Yes"," ") -> 
A163: 212058_at | C163: SR140 | E163: =E162+1 -> 157 | G163: 268 | I163: =G163-E163 -> 111 | K163: =IF(G163>1000,"Yes"," ") -> 
A164: 203336_s_at | C164: ITGB1BP1 | E164: =E163+1 -> 158 | G164: 190 | I164: =G164-E164 -> 32 | K164: =IF(G164>1000,"Yes"," ") -> 
A165: 209389_x_at | C165: DBI | E165: =E164+1 -> 159 | G165: 266 | I165: =G165-E165 -> 107 | K165: =IF(G165>1000,"Yes"," ") -> 
A166: 214141_x_at | C166: SRSF7 | E166: =E165+1 -> 160 | G166: 276 | I166: =G166-E166 -> 116 | K166: =IF(G166>1000,"Yes"," ") -> 
A167: 212281_s_at | C167: TMEM97 | E167: =E166+1 -> 161 | G167: 472 | I167: =G167-E167 -> 311 | K167: =IF(G167>1000,"Yes"," ") -> 
A168: 208691_at | C168: TFRC | E168: =E167+1 -> 162 | G168: 359 | I168: =G168-E168 -> 197 | K168: =IF(G168>1000,"Yes"," ") -> 
A169: 212196_at | C169: IL6ST | E169: =E168+1 -> 163 | G169: 353 | I169: =G169-E169 -> 190 | K169: =IF(G169>1000,"Yes"," ") -> 
A170: 201202_at | C170: PCNA | E170: =E169+1 -> 164 | G170: 230 | I170: =G170-E170 -> 66 | K170: =IF(G170>1000,"Yes"," ") -> 
A171: 206396_at | C171: SLC1A1 | E171: =E170+1 -> 165 | G171: 46 | I171: =G171-E171 -> -119 | K171: =IF(G171>1000,"Yes"," ") -> 
A172: 207030_s_at | C172: CSRP2 | E172: =E171+1 -> 166 | G172: 504 | I172: =G172-E172 -> 338 | K172: =IF(G172>1000,"Yes"," ") -> 
A173: 202503_s_at | C173: KIAA0101 | E173: =E172+1 -> 167 | G173: 343 | I173: =G173-E173 -> 176 | K173: =IF(G173>1000,"Yes"," ") -> 
A174: 200668_s_at | C174: UBE2D3 | E174: =E173+1 -> 168 | G174: 222 | I174: =G174-E174 -> 54 | K174: =IF(G174>1000,"Yes"," ") -> 
A175: 206754_s_at | C175: CYP2B6 /// CYP2B7P1 | E175: =E174+1 -> 169 | G175: 460 | I175: =G175-E175 -> 291 | K175: =IF(G175>1000,"Yes"," ") -> 
A176: 209289_at | C176: NFIB | E176: =E175+1 -> 170 | G176: 594 | I176: =G176-E176 -> 424 | K176: =IF(G176>1000,"Yes"," ") -> 
A177: 212371_at | C177: PPPDE1 | E177: =E176+1 -> 171 | G177: 331 | I177: =G177-E177 -> 160 | K177: =IF(G177>1000,"Yes"," ") -> 
A178: 209603_at | C178: GATA3 | E178: =E177+1 -> 172 | G178: 439 | I178: =G178-E178 -> 267 | K178: =IF(G178>1000,"Yes"," ") -> 
A179: 208820_at | C179: PTK2 | E179: =E178+1 -> 173 | G179: 252 | I179: =G179-E179 -> 79 | K179: =IF(G179>1000,"Yes"," ") -> 
A180: 217834_s_at | C180: SYNCRIP | E180: =E179+1 -> 174 | G180: 212 | I180: =G180-E180 -> 38 | K180: =IF(G180>1000,"Yes"," ") -> 
A181: 201351_s_at | C181: YME1L1 | E181: =E180+1 -> 175 | G181: 342 | I181: =G181-E181 -> 167 | K181: =IF(G181>1000,"Yes"," ") -> 
A182: 214053_at | C182: ERBB4 | E182: =E181+1 -> 176 | G182: 219 | I182: =G182-E182 -> 43 | K182: =IF(G182>1000,"Yes"," ") -> 
A183: 213923_at | C183: RAP2B | E183: =E182+1 -> 177 | G183: 426 | I183: =G183-E183 -> 249 | K183: =IF(G183>1000,"Yes"," ") -> 
A184: 208079_s_at | C184: AURKA | E184: =E183+1 -> 178 | G184: 338 | I184: =G184-E184 -> 160 | K184: =IF(G184>1000,"Yes"," ") -> 
A185: 201589_at | C185: SMC1A | E185: =E184+1 -> 179 | G185: 334 | I185: =G185-E185 -> 155 | K185: =IF(G185>1000,"Yes"," ") -> 
A186: 221823_at | C186: C5orf30 | E186: =E185+1 -> 180 | G186: 42 | I186: =G186-E186 -> -138 | K186: =IF(G186>1000,"Yes"," ") -> 
A187: 217028_at | C187: CXCR4 | E187: =E186+1 -> 181 | G187: 553 | I187: =G187-E187 -> 372 | K187: =IF(G187>1000,"Yes"," ") -> 
A188: 221539_at | C188: EIF4EBP1 | E188: =E187+1 -> 182 | G188: 471 | I188: =G188-E188 -> 289 | K188: =IF(G188>1000,"Yes"," ") -> 
A189: 218355_at | C189: KIF4A | E189: =E188+1 -> 183 | G189: 181 | I189: =G189-E189 -> -2 | K189: =IF(G189>1000,"Yes"," ") -> 
A190: 203755_at | C190: BUB1B | E190: =E189+1 -> 184 | G190: 428 | I190: =G190-E190 -> 244 | K190: =IF(G190>1000,"Yes"," ") -> 
A191: 221577_x_at | C191: GDF15 | E191: =E190+1 -> 185 | G191: 474 | I191: =G191-E191 -> 289 | K191: =IF(G191>1000,"Yes"," ") -> 
A192: 201111_at | C192: CSE1L | E192: =E191+1 -> 186 | G192: 297 | I192: =G192-E192 -> 111 | K192: =IF(G192>1000,"Yes"," ") -> 
A193: 203315_at | C193: NCK2 | E193: =E192+1 -> 187 | G193: 374 | I193: =G193-E193 -> 187 | K193: =IF(G193>1000,"Yes"," ") -> 
A194: 204863_s_at | C194: IL6ST | E194: =E193+1 -> 188 | G194: 536 | I194: =G194-E194 -> 348 | K194: =IF(G194>1000,"Yes"," ") -> 
A195: 213002_at | C195: MARCKS | E195: =E194+1 -> 189 | G195: 322 | I195: =G195-E195 -> 133 | K195: =IF(G195>1000,"Yes"," ") -> 
A196: 201019_s_at | C196: EIF1AX | E196: =E195+1 -> 190 | G196: 363 | I196: =G196-E196 -> 173 | K196: =IF(G196>1000,"Yes"," ") -> 
A197: 204304_s_at | C197: PROM1 | E197: =E196+1 -> 191 | G197: 651 | I197: =G197-E197 -> 460 | K197: =IF(G197>1000,"Yes"," ") -> 
A198: 216248_s_at | C198: NR4A2 | E198: =E197+1 -> 192 | G198: 377 | I198: =G198-E198 -> 185 | K198: =IF(G198>1000,"Yes"," ") -> 
A199: 208787_at | C199: MRPL3 | E199: =E198+1 -> 193 | G199: 284 | I199: =G199-E199 -> 91 | K199: =IF(G199>1000,"Yes"," ") -> 
A200: 201479_at | C200: DKC1 | E200: =E199+1 -> 194 | G200: 236 | I200: =G200-E200 -> 42 | K200: =IF(G200>1000,"Yes"," ") -> 
A201: 202233_s_at | C201: UQCRH | E201: =E200+1 -> 195 | G201: 273 | I201: =G201-E201 -> 78 | K201: =IF(G201>1000,"Yes"," ") -> 
A202: 216640_s_at | C202: PDIA6 | E202: =E201+1 -> 196 | G202: 441 | I202: =G202-E202 -> 245 | K202: =IF(G202>1000,"Yes"," ") -> 
A203: 208939_at | C203: SEPHS1 | E203: =E202+1 -> 197 | G203: 382 | I203: =G203-E203 -> 185 | K203: =IF(G203>1000,"Yes"," ") -> 
... 812 more rows

Sheet Rank_Diff2_Annot
A1: Probe set | B1: Gene symbol | C1: Annotation
A2: 210334_x_at | B2: BIRC5 | C2: This gene is a member of the inhibitor of apoptosis (IAP) gene family, which encode negative regulatory proteins that prevent apoptotic cell death. IAP family members usually contain multiple baculovirus IAP repeat (BIR) domains, but this gene encodes proteins with only a single BIR domain. The encoded proteins also lack a C-terminus RING finger domain. Gene expression is high during fetal development and in most tumors, yet low in adult tissues. Alternatively spliced transcript variants encoding distinct isoforms have been found for this gene. Diseases associated with BIRC5 include childhood malignant schwannoma and cervical carcinosarcoma. Among its related pathways are Signaling by GPCR andPathways in cancer.1. Paik et. al. Gene Expression and Benefit ofChemotherapy in Women With Node-Negative, Estrogen Receptor–Positive Breast Cancer; 2. Sotiriou et. al. Gene Expression Profiling in Breast Cancer: Understanding the Molecular Basis of Histologic Grade To Improve Prognosis
A3: 208781_x_at | B3: SNX3 | C3: This gene encodes a member of the sorting nexin family. Members of this family contain a phox (PX) domain, which is a phosphoinositide binding domain, and are involved in intracellular trafficking. This protein does not contain a coiled coil region, like most family members. This protein interacts with phosphatidylinositol-3-phosphate, and is involved in protein trafficking. A pseudogene of this gene is present on the sex chromosomes. Alternative splicing results in multiple transcript variants encoding distinct isoforms. SNX3 (Sorting Nexin 3) is a Protein Coding gene. Diseases associated with SNX3 include microphthalmia, syndromic 8 and microphthalmia. Among its related pathways are Signaling by GPCR and Endocytosis. GO annotations related to this gene include phosphatidylinositol binding and phosphatidylinositol-3-phosphate binding. An important paralog of this gene is SNX12. 1. Adelaide et. al. Integrated Profiling ofBasal and Luminal Breast Cancers;
A4: 221923_s_at | B4: NPM1 | C4: This gene encodes a phosphoprotein which moves between the nucleus and the cytoplasm. The gene product is thought to be involved in several processes including regulation of the ARF/p53 pathway. A number of genes are fusion partners have been characterized, in particular the anaplastic lymphoma kinase gene on chromosome 2. Mutations in this gene are associated with acute myeloid leukemia. More than a dozen pseudogenes of this gene have been identified. Alternative splicing results in multiple transcript variants. NPM1 (Nucleophosmin (Nucleolar Phosphoprotein B23, Numatrin)) is a Protein Coding gene. Diseases associated with NPM1 include lymphomatoid papulosis and primary cutaneous anaplastic large cell lymphoma. Among its related pathways are Infectious disease and Cell Cycle, Mitotic. GO annotations related to this gene include nucleic acid binding and protein homodimerization activity. An important paralog of this gene is NPM2. 1. Xiong et. al. An estrogen receptor α suppressor, microRNA-22, is downregulated in estrogen receptor α-positivehuman breast cancer cell lines and clinical samples
A5: 204087_s_at | B5: SLC5A6 | C5: SLC5A6 (Solute Carrier Family 5 (Sodium/Multivitamin And Iodide Cotransporter), Member 6) is a Protein Coding gene. Diseases associated with SLC5A6 include thiamine metabolism dysfunction syndrome 2 and urinary tract obstruction. Among its related pathways are Metabolism and Transport of glucose and other sugars, bile salts and organic acids, metal ions and amine compounds. GO annotations related to this gene include transporter activity and sodium-dependent multivitamin transmembrane transporter activity. An important paralog of this gene is SLC5A10. Transports pantothenate, biotin and lipoate in the presence of sodium. 1. Riedel et. al. Journey of the iodide transporter NIS: from its molecular identification to its clinical role in cancer
A6: 200896_x_at | B6: HDGF | C6: This gene encodes a member of the hepatoma-derived growth factor family. The encoded protein has mitogenic and DNA-binding activity and may play a role in cellular proliferation and differentiation. This gene was thought initially to be located on chromosome X, however, that location has been determined to correspond to a related pseudogene. Alternatively spliced transcript variants encoding distinct isoforms have been described. HDGF (Hepatoma-Derived Growth Factor) is a Protein Coding gene. Diseases associated with HDGF include intrahepatic cholangiocarcinoma and hepatocellular carcinoma. Among its related pathways are NF-KappaB Family Pathway and Apoptotic Pathways in Synovial Fibroblasts. GO annotations related to this gene include poly(A) RNA binding and growth factor activity. An important paralog of this gene is HDGFL1. 1. Signoretti et. al. Oncogenic role of the ubiquitin ligase subunit Skp2 in humanbreast cancer; 2. Chen et. al. Prognostic value of nuclear hepatoma-derived growth factor (HDGF) localization in patients withbreast cancer; 3. Chen et. al. Hepatoma-derived growth factor regulatesbreast cancer cell invasion by modulating epithelial–mesenchymal transition
A7: 200687_s_at | B7: SF3B3 | C7: This gene encodes subunit 3 of the splicing factor 3b protein complex. Splicing factor 3b, together with splicing factor 3a and a 12S RNA unit, forms the U2 small nuclear ribonucleoproteins complex (U2 snRNP). The splicing factor 3b/3a complex binds pre-mRNA upstream of the intron's branch site in a sequence independent manner and may anchor the U2 snRNP to the pre-mRNA. Splicing factor 3b is also a component of the minor U12-type spliceosome. Subunit 3 has also been identified as a component of the STAGA (SPT3-TAF(II)31-GCN5L acetylase) transcription coactivator-HAT (histone acetyltransferase) complex, and the TFTC (TATA-binding-protein-free TAF(II)-containing complex). These complexes may function in chromatin modification, transcription, splicing, and DNA repair. SF3B3 (Splicing Factor 3b, Subunit 3, 130kDa) is a Protein Coding gene. Among its related pathways are Development NOTCH1-mediated pathway for NF-KB activity modulation and Chromatin organization. GO annotations related to this gene include nucleic acid binding and RNA binding. An important paralog of this gene is DDB1. 1. Hungermann et. al. Influence of whole arm loss of chromosome 16q on gene expression patterns inoestrogen receptor-positive, invasive breast cancer; 2. Loo et. al. Differential patterns of allelic loss inestrogen receptor-positiveinfiltrating lobular and ductalbreast cancer; 3. Gokmen-Polar et. al. Expression levels ofSF3B3correlate with prognosis and endocrine resistance in estrogen receptor-positive breast cancer
A8: 200822_x_at | B8: TPI1 | C8: This gene encodes an enzyme, consisting of two identical proteins, which catalyzes the isomerization of glyceraldehydes 3-phosphate (G3P) and dihydroxy-acetone phosphate (DHAP) in glycolysis and gluconeogenesis. Mutations in this gene are associated with triosephosphate isomerase deficiency. Pseudogenes have been identified on chromosomes 1, 4, 6 and 7. Alternative splicing results in multiple transcript variants. TPI1 (Triosephosphate Isomerase 1) is a Protein Coding gene. Diseases associated with TPI1 include hemolytic anemia due to triosephosphate isomerase deficiency and phosphoglycerate kinase deficiency. Among its related pathways are Metabolism and Glycosaminoglycan metabolism. GO annotations related to this gene include ubiquitin protein ligase binding and triose-phosphate isomerase activity. 1. Possemato et. al. Functional genomics reveal that the serine synthesis pathway is essential inbreast cancer; 2. Reis-Filho et. al. The impact of expression profiling on prognostic and predictive testing in breast cancer
A9: 204092_s_at | B9: AURKA | C9: The protein encoded by this gene is a cell cycle-regulated kinase that appears to be involved in microtubule formation and/or stabilization at the spindle pole during chromosome segregation. The encoded protein is found at the centrosome in interphase cells and at the spindle poles in mitosis. This gene may play a role in tumor development and progression. A processed pseudogene of this gene has been found on chromosome 1, and an unprocessed pseudogene has been found on chromosome 10. Multiple transcript variants encoding the same protein have been found for this gene. AURKA (Aurora Kinase A) is a Protein Coding gene. Diseases associated with AURKA include postsurgical hypothyroidism and colorectal adenocarcinoma. Among its related pathways are ERK Signaling and Regulation of PLK1 Activity at G2/M Transition. GO annotations related to this gene include transferase activity, transferring phosphorus-containing groups and protein tyrosine kinase activity. An important paralog of this gene is AURKC. 1. Cox et. al. Polymorphisms of the AURKA (STK15/Aurora Kinase) Gene andBreast CancerRisk (United States); 2. Pujana et. al. Network modeling linksbreast cancersusceptibility and centrosome dysfunction; 3. Desmedt et. al. Biological Processes Associated withBreast Cancer Clinical Outcome Depend on the Molecular Subtypes
A10: 211060_x_at | B10: GPAA1 | C10: Posttranslational glycosylphosphatidylinositol (GPI) anchor attachment serves as a general mechanism for linking proteins to the cell surface membrane. The protein encoded by this gene presumably functions in GPI anchoring at the GPI transfer step. The mRNA transcript is ubiquitously expressed in both fetal and adult tissues. The anchor attachment protein 1 contains an N-terminal signal sequence, 1 cAMP- and cGMP-dependent protein kinase phosphorylation site, 1 leucine zipper pattern, 2 potential N-glycosylation sites, and 8 putative transmembrane domains. GPAA1 (Glycosylphosphatidylinositol Anchor Attachment 1) is a Protein Coding gene. Among its related pathways are Transport to the Golgi and subsequent modification and Metabolism. GO annotations related to this gene include tubulin binding and GPI-anchor transamidase activity. 1. Wu et. al. Overexpression of Glycosylphosphatidylinositol (GPI) Transamidase Subunits Phosphatidylinositol Glycan Class T and/or GPI Anchor Attachment 1 InducesTumorigenesisand Contributes to Invasion inHuman Breast Cancer; 2. Dutta et. al. A network-based, integrative study to identify core biological pathways that drive breast cancer clinical subtypes
A11: 215690_x_at | B11: GPAA1 | C11: Ditto
